[Event "Titled Tuesday Blitz August 31 2021"]
[White "Solovchuk, Oleksiy"]
[Black "Urjubdshzirov, Erdni"]
[WhiteFideId "14115220"]
[BlackFideId "4186451"]
[WhiteElo "2376"]
[BlackElo "2416"]
[Result "0-1"]
[Round "04"]
[TimeControl "180+1"]
[Date "2021.08.31"]
[WhiteClock "0:00:17"]
[BlackClock "0:00:18"]

1. d4 {[%clk 0:03:00]}  Nf6 {[%clk 0:02:59]} 2. Nf3 {[%clk 0:03:01]}  e6 {[%clk 0:02:59]} 3. e3 {[%clk 0:03:00]}  c5 {[%clk 0:02:59]} 4. Nbd2 {[%clk 0:02:59]}  b6 {[%clk 0:02:58]} 5. b3 {[%clk 0:02:59]}  Bb7 {[%clk 0:02:58]} 6. Bd3 {[%clk 0:02:59]}  d6 {[%clk 0:02:58]} 7. Bb2 {[%clk 0:02:58]}  Nbd7 {[%clk 0:02:59]} 8. O-O {[%clk 0:02:58]}  Be7 {[%clk 0:02:59]} 9. c4 {[%clk 0:02:57]}  O-O {[%clk 0:02:59]} 10. Qe2 {[%clk 0:02:57]}  Re8 {[%clk 0:02:58]} 11. Rfd1 {[%clk 0:02:56]}  Qc7 {[%clk 0:02:56]} 12. Rac1 {[%clk 0:02:55]}  e5 {[%clk 0:02:55]} 13. d5 {[%clk 0:02:45]}  Bf8 {[%clk 0:02:48]} 14. Bb1 {[%clk 0:02:44]}  h6 {[%clk 0:02:43]} 15. Nh4 {[%clk 0:02:43]}  a6 {[%clk 0:02:28]} 16. Qf3 {[%clk 0:02:41]}  b5 {[%clk 0:02:26]} 17. e4 {[%clk 0:02:17]}  Bc8 {[%clk 0:02:13]} 18. Bd3 {[%clk 0:02:16]}  bxc4 {[%clk 0:02:05]} 19. Nxc4 {[%clk 0:02:15]}  Nb6 {[%clk 0:02:05]} 20. h3 {[%clk 0:02:14]}  Nxc4 {[%clk 0:02:04]} 21. Bxc4 {[%clk 0:02:13]}  Nd7 {[%clk 0:01:52]} 22. Nf5 {[%clk 0:02:10]}  Nb6 {[%clk 0:01:51]} 23. Bf1 {[%clk 0:02:09]}  Bxf5 {[%clk 0:01:48]} 24. exf5 {[%clk 0:02:07]}  Be7 {[%clk 0:01:42]} 25. Qe4 {[%clk 0:02:04]}  Nd7 {[%clk 0:01:31]} 26. g3 {[%clk 0:01:59]}  Reb8 {[%clk 0:01:26]} 27. Bc3 {[%clk 0:01:58]}  a5 {[%clk 0:01:26]} 28. Be1 {[%clk 0:01:39]}  a4 {[%clk 0:01:16]} 29. b4 {[%clk 0:01:38]}  Qb7 {[%clk 0:01:05]} 30. b5 {[%clk 0:01:36]}  Bd8 {[%clk 0:01:02]} 31. Rc4 {[%clk 0:01:01]}  Nf6 {[%clk 0:00:57]} 32. Qg2 {[%clk 0:00:56]}  Qxb5 {[%clk 0:00:52]} 33. Rb4 {[%clk 0:00:55]}  Qd7 {[%clk 0:00:47]} 34. Rxb8 {[%clk 0:00:53]}  Rxb8 {[%clk 0:00:48]} 35. g4 {[%clk 0:00:51]}  Rb2 {[%clk 0:00:47]} 36. Bc4 {[%clk 0:00:49]}  Nh7 {[%clk 0:00:35]} 37. Bc3 {[%clk 0:00:47]}  Rb8 {[%clk 0:00:27]} 38. Qe4 {[%clk 0:00:42]}  Bg5 {[%clk 0:00:26]} 39. Qc2 {[%clk 0:00:41]}  Bf4 {[%clk 0:00:24]} 40. Kg2 {[%clk 0:00:37]}  Qe7 {[%clk 0:00:23]} 41. Be1 {[%clk 0:00:30]}  h5 {[%clk 0:00:20]} 42. Rb1 {[%clk 0:00:25]}  Rxb1 {[%clk 0:00:18]} 43. Qxb1 {[%clk 0:00:26]}  hxg4 {[%clk 0:00:19]} 44. Qb8+ {[%clk 0:00:25]}  Nf8 {[%clk 0:00:19]} 45. hxg4 {[%clk 0:00:24]}  Qh4 {[%clk 0:00:19]} 46. f3 {[%clk 0:00:17]}  Qh2+ {[%clk 0:00:19]} 47. Kf1 {[%clk 0:00:17]}  Qh1+ {[%clk 0:00:19]} 48. Ke2 {[%clk 0:00:18]}  Qg2+ {[%clk 0:00:19]} 49. Kd1 {[%clk 0:00:16]}  Qxf3+ {[%clk 0:00:19]} 50. Be2 {[%clk 0:00:15]}  Qxd5+ {[%clk 0:00:19]} 51. Kc2 {[%clk 0:00:16]}  Qxa2+ {[%clk 0:00:19]} 52. Kd1 {[%clk 0:00:17]}  Qa1+ {[%clk 0:00:18]} 53. Kc2 {[%clk 0:00:17]}  Qa2+ {[%clk 0:00:18]} 54. Kd3 {[%clk 0:00:17]}  Qb3+ {[%clk 0:00:18]} 55. Ke4 {[%clk 0:00:17]}  Qxb8 {[%clk 0:00:18]} 0-1


[Site "https://www.chess.com"]

[Event "Titled Tuesday Blitz August 31 2021"]
[White "Suarez Uriel, Adrian"]
[Black "Arabidze, Meri"]
[WhiteFideId "22230874"]
[BlackFideId "13604040"]
[WhiteElo "2300"]
[BlackElo "2432"]
[Result "1-0"]
[Round "04"]
[TimeControl "180+1"]
[Date "2021.08.31"]
[WhiteClock "0:00:17"]
[BlackClock "0:00:02"]

1. e4 {[%clk 0:03:00]}  c5 {[%clk 0:02:58]} 2. Ne2 {[%clk 0:02:57]}  e6 {[%clk 0:02:59]} 3. Nbc3 {[%clk 0:02:54]}  Nc6 {[%clk 0:02:59]} 4. d4 {[%clk 0:02:54]}  cxd4 {[%clk 0:03:00]} 5. Nxd4 {[%clk 0:02:55]}  a6 {[%clk 0:03:01]} 6. Nxc6 {[%clk 0:02:53]}  bxc6 {[%clk 0:03:02]} 7. Bd3 {[%clk 0:02:54]}  d5 {[%clk 0:03:03]} 8. O-O {[%clk 0:02:53]}  Nf6 {[%clk 0:03:03]} 9. Re1 {[%clk 0:02:53]}  Bb7 {[%clk 0:03:02]} 10. h3 {[%clk 0:02:53]}  Be7 {[%clk 0:03:02]} 11. Bg5 {[%clk 0:02:52]}  O-O {[%clk 0:03:01]} 12. Qf3 {[%clk 0:02:51]}  c5 {[%clk 0:02:57]} 13. exd5 {[%clk 0:02:44]}  exd5 {[%clk 0:02:57]} 14. Rad1 {[%clk 0:02:40]}  Ra7 {[%clk 0:02:51]} 15. Qf5 {[%clk 0:02:39]}  Bc8 {[%clk 0:02:45]} 16. Qe5 {[%clk 0:02:27]}  d4 {[%clk 0:02:34]} 17. Ne4 {[%clk 0:02:24]}  Nxe4 {[%clk 0:01:36]} 18. Qxe4 {[%clk 0:02:20]}  f5 {[%clk 0:01:37]} 19. Qxe7 {[%clk 0:02:09]}  Rxe7 {[%clk 0:01:34]} 20. Bxe7 {[%clk 0:02:09]}  Qd5 {[%clk 0:01:30]} 21. Bxf8 {[%clk 0:02:06]}  Kxf8 {[%clk 0:01:31]} 22. b3 {[%clk 0:01:59]}  Qd6 {[%clk 0:01:31]} 23. Re2 {[%clk 0:01:56]}  Bd7 {[%clk 0:01:31]} 24. Rde1 {[%clk 0:01:57]}  a5 {[%clk 0:01:30]} 25. a4 {[%clk 0:01:56]}  g6 {[%clk 0:01:30]} 26. Re5 {[%clk 0:01:56]}  Kg7 {[%clk 0:01:18]} 27. Bc4 {[%clk 0:01:56]}  Kh6 {[%clk 0:01:12]} 28. Rd5 {[%clk 0:01:55]}  Qc6 {[%clk 0:01:05]} 29. Ree5 {[%clk 0:01:55]}  Kg5 {[%clk 0:00:44]} 30. Rxc5 {[%clk 0:01:54]}  Qb6 {[%clk 0:00:44]} 31. Rcd5 {[%clk 0:01:48]}  Bc8 {[%clk 0:00:38]} 32. Rxa5 {[%clk 0:01:37]}  Qb4 {[%clk 0:00:38]} 33. Bd3 {[%clk 0:01:34]}  Qd2 {[%clk 0:00:35]} 34. Bf1 {[%clk 0:00:51]}  Bb7 {[%clk 0:00:28]} 35. Rac5 {[%clk 0:00:47]}  Qc1 {[%clk 0:00:23]} 36. b4 {[%clk 0:00:47]}  Kf4 {[%clk 0:00:20]} 37. b5 {[%clk 0:00:42]}  Be4 {[%clk 0:00:17]} 38. a5 {[%clk 0:00:37]}  Qa1 {[%clk 0:00:13]} 39. a6 {[%clk 0:00:35]}  h5 {[%clk 0:00:13]} 40. h4 {[%clk 0:00:34]}  Qa2 {[%clk 0:00:05]} 41. g3+ {[%clk 0:00:34]}  Kg4 {[%clk 0:00:04]} 42. Rxe4+ {[%clk 0:00:27]}  fxe4 {[%clk 0:00:04]} 43. Rg5+ {[%clk 0:00:23]}  Kf3 {[%clk 0:00:04]} 44. Bg2+ {[%clk 0:00:24]}  Ke2 {[%clk 0:00:04]} 45. Bxe4 {[%clk 0:00:23]}  Qb1+ {[%clk 0:00:04]} 46. Kh2 {[%clk 0:00:22]}  Kf1 {[%clk 0:00:04]} 47. Rxg6 {[%clk 0:00:19]}  Kxf2 {[%clk 0:00:03]} 48. Rf6+ {[%clk 0:00:19]}  Ke3 {[%clk 0:00:04]} 49. Bg2 {[%clk 0:00:19]}  Qxb5 {[%clk 0:00:03]} 50. a7 {[%clk 0:00:19]}  d3 {[%clk 0:00:03]} 51. cxd3 {[%clk 0:00:18]}  Qxd3 {[%clk 0:00:02]} 52. Rf3+ {[%clk 0:00:17]}  Kd2 {[%clk 0:00:02]} 53. Rxd3+ {[%clk 0:00:17]} 1-0


[Site "https://www.chess.com"]

[Event "Titled Tuesday Blitz August 31 2021"]
[White "TanitoluwaAps116"]
[Black "Bacrot, Etienne"]
[BlackFideId "605506"]
[WhiteElo "2540"]
[BlackElo "2673"]
[Result "0-1"]
[Round "04"]
[TimeControl "180+1"]
[Date "2021.08.31"]
[WhiteClock "0:00:03"]
[BlackClock "0:00:09"]

1. d4 {[%clk 0:03:00]}  Nf6 {[%clk 0:02:59]} 2. c4 {[%clk 0:02:41]}  c5 {[%clk 0:02:59]} 3. d5 {[%clk 0:02:36]}  b5 {[%clk 0:02:59]} 4. cxb5 {[%clk 0:02:37]}  a6 {[%clk 0:02:59]} 5. bxa6 {[%clk 0:02:37]}  g6 {[%clk 0:02:59]} 6. Nc3 {[%clk 0:02:37]}  Bxa6 {[%clk 0:02:56]} 7. e4 {[%clk 0:02:37]}  Bxf1 {[%clk 0:02:54]} 8. Kxf1 {[%clk 0:02:38]}  d6 {[%clk 0:02:54]} 9. g3 {[%clk 0:02:37]}  Bg7 {[%clk 0:02:53]} 10. Kg2 {[%clk 0:02:38]}  O-O {[%clk 0:02:53]} 11. Nf3 {[%clk 0:02:38]}  Nbd7 {[%clk 0:02:49]} 12. Re1 {[%clk 0:02:37]}  Ng4 {[%clk 0:02:43]} 13. Qc2 {[%clk 0:02:05]}  Qa5 {[%clk 0:02:35]} 14. Bd2 {[%clk 0:01:58]}  Qa6 {[%clk 0:02:31]} 15. b3 {[%clk 0:01:36]}  Rfb8 {[%clk 0:02:15]} 16. Rab1 {[%clk 0:01:25]}  Nge5 {[%clk 0:01:54]} 17. Nxe5 {[%clk 0:00:58]}  Nxe5 {[%clk 0:01:55]} 18. a4 {[%clk 0:00:45]}  Nd3 {[%clk 0:01:49]} 19. Re3 {[%clk 0:00:43]}  Nb4 {[%clk 0:01:45]} 20. Qd1 {[%clk 0:00:39]}  Bd4 {[%clk 0:01:43]} 21. Rf3 {[%clk 0:00:33]}  Nd3 {[%clk 0:01:35]} 22. Nb5 {[%clk 0:00:22]}  Rxb5 {[%clk 0:01:29]} 23. axb5 {[%clk 0:00:23]}  Qxb5 {[%clk 0:01:27]} 24. Bc3 {[%clk 0:00:21]}  Nxf2 {[%clk 0:00:57]} 25. Rxf2 {[%clk 0:00:22]}  Bxc3 {[%clk 0:00:57]} 26. Qf3 {[%clk 0:00:23]}  Bf6 {[%clk 0:00:57]} 27. g4 {[%clk 0:00:23]}  Rf8 {[%clk 0:00:40]} 28. Rbf1 {[%clk 0:00:24]}  Bd4 {[%clk 0:00:39]} 29. Re2 {[%clk 0:00:25]}  f6 {[%clk 0:00:34]} 30. Rd1 {[%clk 0:00:24]}  Ra8 {[%clk 0:00:32]} 31. g5 {[%clk 0:00:19]}  fxg5 {[%clk 0:00:30]} 32. Qg4 {[%clk 0:00:19]}  Rf8 {[%clk 0:00:27]} 33. Qe6+ {[%clk 0:00:15]}  Kg7 {[%clk 0:00:25]} 34. Red2 {[%clk 0:00:10]}  Rf7 {[%clk 0:00:21]} 35. Rd3 {[%clk 0:00:10]}  Qa6 {[%clk 0:00:18]} 36. Qg4 {[%clk 0:00:08]}  Rf2+ {[%clk 0:00:17]} 37. Kg3 {[%clk 0:00:06]}  Qa2 {[%clk 0:00:16]} 38. Qh3 {[%clk 0:00:04]}  Be5+ {[%clk 0:00:15]} 39. Kg4 {[%clk 0:00:04]}  Rg2+ {[%clk 0:00:15]} 40. Kf3 {[%clk 0:00:03]}  Qf2# {[%clk 0:00:09]} 0-1


[Site "https://www.chess.com"]

[Event "Titled Tuesday Blitz August 31 2021"]
[White "Tologon tegin, Semetei"]
[Black "Assaubayeva, Bibisara"]
[WhiteFideId "13800574"]
[BlackFideId "13708694"]
[WhiteElo "2224"]
[BlackElo "2232"]
[Result "0-1"]
[Round "04"]
[TimeControl "180+1"]
[Date "2021.08.31"]
[WhiteClock "0:00:15"]
[BlackClock "0:00:38"]

1. e4 {[%clk 0:03:00]}  c5 {[%clk 0:02:59]} 2. Be2 {[%clk 0:02:59]}  d6 {[%clk 0:02:57]} 3. f4 {[%clk 0:02:59]}  g6 {[%clk 0:02:57]} 4. Nf3 {[%clk 0:02:58]}  Bg7 {[%clk 0:02:57]} 5. O-O {[%clk 0:02:58]}  Nc6 {[%clk 0:02:57]} 6. c3 {[%clk 0:02:58]}  Nf6 {[%clk 0:02:53]} 7. d3 {[%clk 0:02:58]}  O-O {[%clk 0:02:50]} 8. Kh1 {[%clk 0:02:58]}  c4 {[%clk 0:02:47]} 9. Be3 {[%clk 0:02:50]}  cxd3 {[%clk 0:02:40]} 10. Bxd3 {[%clk 0:02:50]}  e5 {[%clk 0:02:30]} 11. Na3 {[%clk 0:02:20]}  Ng4 {[%clk 0:02:27]} 12. Bd2 {[%clk 0:02:16]}  exf4 {[%clk 0:02:11]} 13. Bxf4 {[%clk 0:02:14]}  Nce5 {[%clk 0:02:10]} 14. Be2 {[%clk 0:02:08]}  Be6 {[%clk 0:02:07]} 15. Nb5 {[%clk 0:02:07]}  Qb6 {[%clk 0:02:02]} 16. Nbd4 {[%clk 0:01:59]}  Qxb2 {[%clk 0:01:54]} 17. Nxe6 {[%clk 0:01:43]}  fxe6 {[%clk 0:01:55]} 18. Ng5 {[%clk 0:01:43]}  Rxf4 {[%clk 0:01:45]} 19. Rxf4 {[%clk 0:01:42]}  Ne3 {[%clk 0:01:46]} 20. Qc1 {[%clk 0:01:40]}  Qxe2 {[%clk 0:01:45]} 21. Qg1 {[%clk 0:01:35]}  Bh6 {[%clk 0:01:40]} 22. Rf2 {[%clk 0:01:26]}  Qg4 {[%clk 0:01:33]} 23. Nf3 {[%clk 0:01:20]}  Nxf3 {[%clk 0:01:24]} 24. Rxf3 {[%clk 0:01:19]}  Nc4 {[%clk 0:01:20]} 25. Qd4 {[%clk 0:01:10]}  Ne5 {[%clk 0:01:13]} 26. Rg3 {[%clk 0:01:06]}  Qe2 {[%clk 0:01:10]} 27. Qxd6 {[%clk 0:01:04]}  Bf4 {[%clk 0:01:05]} 28. Qxe6+ {[%clk 0:01:03]}  Kg7 {[%clk 0:01:05]} 29. Rh3 {[%clk 0:00:56]}  Rf8 {[%clk 0:00:53]} 30. Qe7+ {[%clk 0:00:21]}  Rf7 {[%clk 0:00:51]} 31. Qh4 {[%clk 0:00:22]}  h5 {[%clk 0:00:45]} 32. c4 {[%clk 0:00:14]}  Bg3 {[%clk 0:00:36]} 33. hxg3 {[%clk 0:00:13]}  Rf1+ {[%clk 0:00:36]} 34. Rxf1 {[%clk 0:00:11]}  Qxf1+ {[%clk 0:00:37]} 35. Kh2 {[%clk 0:00:12]}  Ng4+ {[%clk 0:00:37]} 36. Qxg4 {[%clk 0:00:12]}  hxg4 {[%clk 0:00:38]} 37. Rh4 {[%clk 0:00:13]}  Qxc4 {[%clk 0:00:37]} 38. Rxg4 {[%clk 0:00:12]}  Qxa2 {[%clk 0:00:38]} 39. e5 {[%clk 0:00:13]}  Qe6 {[%clk 0:00:38]} 40. Re4 {[%clk 0:00:13]}  a5 {[%clk 0:00:38]} 41. g4 {[%clk 0:00:13]}  b5 {[%clk 0:00:38]} 42. Kg3 {[%clk 0:00:13]}  a4 {[%clk 0:00:38]} 43. Kf4 {[%clk 0:00:14]}  a3 {[%clk 0:00:38]} 44. Rb4 {[%clk 0:00:14]}  a2 {[%clk 0:00:38]} 45. Rxb5 {[%clk 0:00:15]}  a1=Q {[%clk 0:00:38]} 46. Rb7+ {[%clk 0:00:16]}  Qf7+ {[%clk 0:00:37]} 47. Rxf7+ {[%clk 0:00:15]}  Kxf7 {[%clk 0:00:38]} 0-1


[Site "https://www.chess.com"]

[Event "Titled Tuesday Blitz August 31 2021"]
[White "Ulko, Jaroslav"]
[Black "Karavade, Eesha"]
[WhiteFideId "4116658"]
[BlackFideId "5012600"]
[WhiteElo "2304"]
[BlackElo "2258"]
[Result "1-0"]
[Round "04"]
[TimeControl "180+1"]
[Date "2021.08.31"]
[WhiteClock "0:00:13"]
[BlackClock "0:00:18"]

1. d4 {[%clk 0:02:59]}  Nf6 {[%clk 0:02:59]} 2. Nf3 {[%clk 0:02:58]}  d5 {[%clk 0:02:57]} 3. c4 {[%clk 0:02:58]}  e6 {[%clk 0:02:57]} 4. Nc3 {[%clk 0:02:57]}  Bb4 {[%clk 0:02:54]} 5. cxd5 {[%clk 0:02:56]}  exd5 {[%clk 0:02:54]} 6. Bg5 {[%clk 0:02:56]}  h6 {[%clk 0:02:54]} 7. Bxf6 {[%clk 0:02:55]}  Qxf6 {[%clk 0:02:53]} 8. Qb3 {[%clk 0:02:55]}  c5 {[%clk 0:02:52]} 9. e3 {[%clk 0:02:51]}  O-O {[%clk 0:02:50]} 10. a3 {[%clk 0:02:49]}  Bxc3+ {[%clk 0:02:48]} 11. Qxc3 {[%clk 0:02:49]}  Nd7 {[%clk 0:02:38]} 12. Be2 {[%clk 0:02:35]}  b6 {[%clk 0:02:35]} 13. O-O {[%clk 0:02:34]}  Bb7 {[%clk 0:02:24]} 14. Rac1 {[%clk 0:02:33]}  c4 {[%clk 0:02:19]} 15. Nd2 {[%clk 0:02:30]}  b5 {[%clk 0:02:12]} 16. Bf3 {[%clk 0:02:30]}  Qe6 {[%clk 0:02:06]} 17. Rfe1 {[%clk 0:02:28]}  Nf6 {[%clk 0:02:05]} 18. b3 {[%clk 0:02:26]}  Rfc8 {[%clk 0:02:03]} 19. bxc4 {[%clk 0:02:25]}  bxc4 {[%clk 0:02:02]} 20. Rb1 {[%clk 0:02:19]}  Bc6 {[%clk 0:02:00]} 21. Rec1 {[%clk 0:02:02]}  Rcb8 {[%clk 0:01:44]} 22. h3 {[%clk 0:01:54]}  Rb6 {[%clk 0:01:38]} 23. Qa5 {[%clk 0:01:47]}  Rab8 {[%clk 0:01:22]} 24. Qxa7 {[%clk 0:01:36]}  Rxb1 {[%clk 0:01:22]} 25. Rxb1 {[%clk 0:01:35]}  Rxb1+ {[%clk 0:01:21]} 26. Nxb1 {[%clk 0:01:36]}  Qf5 {[%clk 0:01:20]} 27. Qb8+ {[%clk 0:01:19]}  Kh7 {[%clk 0:01:19]} 28. Qb2 {[%clk 0:01:19]}  Ba4 {[%clk 0:01:04]} 29. Nc3 {[%clk 0:01:17]}  Bb3 {[%clk 0:01:04]} 30. a4 {[%clk 0:01:03]}  g5 {[%clk 0:00:54]} 31. a5 {[%clk 0:01:01]}  h5 {[%clk 0:00:54]} 32. a6 {[%clk 0:00:52]}  g4 {[%clk 0:00:54]} 33. hxg4 {[%clk 0:00:50]}  hxg4 {[%clk 0:00:54]} 34. Be2 {[%clk 0:00:26]}  Qd7 {[%clk 0:00:43]} 35. Qa3 {[%clk 0:00:20]}  g3 {[%clk 0:00:28]} 36. a7 {[%clk 0:00:16]}  gxf2+ {[%clk 0:00:28]} 37. Kf1 {[%clk 0:00:14]}  Ne4 {[%clk 0:00:18]} 38. Nxe4 {[%clk 0:00:13]}  dxe4 {[%clk 0:00:18]} 39. a8=Q {[%clk 0:00:13]} 1-0


[Site "https://www.chess.com"]

[Event "Titled Tuesday Blitz August 31 2021"]
[White "Wagner, Dennis"]
[Black "Krysa, Leandro"]
[WhiteFideId "24650684"]
[BlackFideId "116807"]
[WhiteElo "2807"]
[BlackElo "2621"]
[Result "1/2-1/2"]
[Round "04"]
[TimeControl "180+1"]
[Date "2021.08.31"]
[WhiteClock "0:00:16"]
[BlackClock "0:00:05"]

1. e4 {[%clk 0:03:00]}  c5 {[%clk 0:02:59]} 2. c3 {[%clk 0:03:00]}  Nf6 {[%clk 0:02:58]} 3. e5 {[%clk 0:03:00]}  Nd5 {[%clk 0:02:58]} 4. Nf3 {[%clk 0:03:01]}  Nc6 {[%clk 0:02:58]} 5. Bc4 {[%clk 0:03:01]}  Nb6 {[%clk 0:02:55]} 6. Bb3 {[%clk 0:03:01]}  d6 {[%clk 0:02:46]} 7. exd6 {[%clk 0:03:01]}  Qxd6 {[%clk 0:02:46]} 8. O-O {[%clk 0:03:01]}  Bf5 {[%clk 0:02:38]} 9. d4 {[%clk 0:02:56]}  cxd4 {[%clk 0:02:38]} 10. cxd4 {[%clk 0:02:56]}  e6 {[%clk 0:02:39]} 11. Nc3 {[%clk 0:02:55]}  Be7 {[%clk 0:02:37]} 12. d5 {[%clk 0:02:30]}  exd5 {[%clk 0:02:36]} 13. Nxd5 {[%clk 0:02:29]}  Nxd5 {[%clk 0:02:36]} 14. Qxd5 {[%clk 0:02:27]}  Qxd5 {[%clk 0:02:34]} 15. Bxd5 {[%clk 0:02:28]}  O-O {[%clk 0:02:34]} 16. Bxc6 {[%clk 0:02:22]}  bxc6 {[%clk 0:02:33]} 17. Be3 {[%clk 0:02:19]}  Bf6 {[%clk 0:02:28]} 18. Bd4 {[%clk 0:02:18]}  Be4 {[%clk 0:01:56]} 19. Bxf6 {[%clk 0:02:15]}  Bxf3 {[%clk 0:01:56]} 20. Bxg7 {[%clk 0:01:45]}  Bxg2 {[%clk 0:01:38]} 21. Bxf8 {[%clk 0:01:46]}  Bxf1 {[%clk 0:01:36]} 22. Kxf1 {[%clk 0:01:47]}  Kxf8 {[%clk 0:01:35]} 23. Rc1 {[%clk 0:01:48]}  Rb8 {[%clk 0:01:30]} 24. b3 {[%clk 0:01:44]}  Rb6 {[%clk 0:01:30]} 25. Rc5 {[%clk 0:01:41]}  Ke7 {[%clk 0:01:26]} 26. Ke2 {[%clk 0:01:39]}  Ra6 {[%clk 0:01:25]} 27. a4 {[%clk 0:01:22]}  Rb6 {[%clk 0:01:25]} 28. Rc3 {[%clk 0:01:19]}  Kd6 {[%clk 0:01:21]} 29. Kd2 {[%clk 0:01:13]}  Rb4 {[%clk 0:01:11]} 30. Rh3 {[%clk 0:01:13]}  h5 {[%clk 0:01:04]} 31. Kc3 {[%clk 0:01:04]}  Rf4 {[%clk 0:01:01]} 32. Rxh5 {[%clk 0:01:04]}  Rxf2 {[%clk 0:00:57]} 33. h4 {[%clk 0:01:03]}  Rh2 {[%clk 0:00:48]} 34. Kb4 {[%clk 0:01:00]}  Rh3 {[%clk 0:00:45]} 35. Rh7 {[%clk 0:00:45]}  f5 {[%clk 0:00:34]} 36. Rxa7 {[%clk 0:00:39]}  Rxh4+ {[%clk 0:00:34]} 37. Ka5 {[%clk 0:00:39]}  f4 {[%clk 0:00:31]} 38. Rf7 {[%clk 0:00:37]}  Ke6 {[%clk 0:00:30]} 39. Rf8 {[%clk 0:00:37]}  Ke7 {[%clk 0:00:17]} 40. Rf5 {[%clk 0:00:33]}  Ke6 {[%clk 0:00:17]} 41. Rc5 {[%clk 0:00:33]}  f3 {[%clk 0:00:15]} 42. Rxc6+ {[%clk 0:00:31]}  Ke5 {[%clk 0:00:08]} 43. b4 {[%clk 0:00:26]}  f2 {[%clk 0:00:06]} 44. Rc1 {[%clk 0:00:26]}  Re4 {[%clk 0:00:03]} 45. Rf1 {[%clk 0:00:26]}  Re2 {[%clk 0:00:04]} 46. Kb6 {[%clk 0:00:21]}  Kd5 {[%clk 0:00:04]} 47. a5 {[%clk 0:00:19]}  Kc4 {[%clk 0:00:03]} 48. b5 {[%clk 0:00:18]}  Re6+ {[%clk 0:00:03]} 49. Kc7 {[%clk 0:00:13]}  Kxb5 {[%clk 0:00:04]} 50. Rxf2 {[%clk 0:00:13]}  Kxa5 {[%clk 0:00:05]} 51. Rf5+ {[%clk 0:00:14]}  Kb4 {[%clk 0:00:04]} 52. Kd7 {[%clk 0:00:14]}  Re3 {[%clk 0:00:04]} 53. Rf6 {[%clk 0:00:15]}  Kc3 {[%clk 0:00:05]} 54. Rd6 {[%clk 0:00:16]}  Rd3 {[%clk 0:00:05]} 55. Rxd3+ {[%clk 0:00:16]}  Kxd3 {[%clk 0:00:05]} 1/2-1/2


[Site "https://www.chess.com"]

[Event "Titled Tuesday Blitz August 31 2021"]
[White "Weetik, Vjacheslav"]
[Black "Ovchinnikov, Vsevolod"]
[WhiteFideId "4153472"]
[BlackFideId "24176842"]
[WhiteElo "2469"]
[BlackElo "2376"]
[Result "0-1"]
[Round "04"]
[TimeControl "180+1"]
[Date "2021.08.31"]
[WhiteClock "0:00:05"]
[BlackClock "0:00:18"]

1. d4 {[%clk 0:03:00]}  Nf6 {[%clk 0:02:59]} 2. Bf4 {[%clk 0:03:00]}  g6 {[%clk 0:02:59]} 3. Nf3 {[%clk 0:03:00]}  Bg7 {[%clk 0:03:00]} 4. Nc3 {[%clk 0:02:59]}  d6 {[%clk 0:03:00]} 5. e4 {[%clk 0:02:59]}  Nfd7 {[%clk 0:03:01]} 6. Qd2 {[%clk 0:02:53]}  e5 {[%clk 0:03:01]} 7. Bg5 {[%clk 0:02:47]}  f6 {[%clk 0:03:01]} 8. Be3 {[%clk 0:02:35]}  Nc6 {[%clk 0:03:00]} 9. a3 {[%clk 0:02:28]}  Nb6 {[%clk 0:02:44]} 10. h3 {[%clk 0:02:07]}  O-O {[%clk 0:02:33]} 11. O-O-O {[%clk 0:02:04]}  exd4 {[%clk 0:02:22]} 12. Nxd4 {[%clk 0:02:03]}  Nxd4 {[%clk 0:02:20]} 13. Bxd4 {[%clk 0:02:01]}  Be6 {[%clk 0:02:09]} 14. h4 {[%clk 0:01:53]}  f5 {[%clk 0:02:03]} 15. h5 {[%clk 0:01:48]}  Bxd4 {[%clk 0:01:57]} 16. Qxd4 {[%clk 0:01:46]}  Qf6 {[%clk 0:01:56]} 17. hxg6 {[%clk 0:01:40]}  hxg6 {[%clk 0:01:54]} 18. Qd2 {[%clk 0:01:04]}  f4 {[%clk 0:01:51]} 19. g3 {[%clk 0:01:00]}  Kg7 {[%clk 0:01:44]} 20. Bd3 {[%clk 0:00:30]}  Rf7 {[%clk 0:01:30]} 21. Rh4 {[%clk 0:00:28]}  g5 {[%clk 0:01:27]} 22. Rh2 {[%clk 0:00:25]}  Rh8 {[%clk 0:01:25]} 23. Rxh8 {[%clk 0:00:25]}  Kxh8 {[%clk 0:01:26]} 24. Kb1 {[%clk 0:00:25]}  Kg7 {[%clk 0:01:14]} 25. Rg1 {[%clk 0:00:19]}  Kf8 {[%clk 0:01:06]} 26. Ne2 {[%clk 0:00:16]}  fxg3 {[%clk 0:01:02]} 27. Rxg3 {[%clk 0:00:13]}  Qxf2 {[%clk 0:00:51]} 28. Qxg5 {[%clk 0:00:12]}  Qf1+ {[%clk 0:00:36]} 29. Nc1 {[%clk 0:00:12]}  Qf6 {[%clk 0:00:36]} 30. Qh5 {[%clk 0:00:09]}  Ke7 {[%clk 0:00:28]} 31. Rg6 {[%clk 0:00:09]}  Qe5 {[%clk 0:00:28]} 32. Qh6 {[%clk 0:00:08]}  Nd7 {[%clk 0:00:23]} 33. b3 {[%clk 0:00:05]}  Nf8 {[%clk 0:00:20]} 34. Rg5 {[%clk 0:00:04]}  Qf6 {[%clk 0:00:19]} 35. Qh5 {[%clk 0:00:05]}  Rh7 {[%clk 0:00:18]} 0-1


[Site "https://www.chess.com"]

[Event "Titled Tuesday Blitz August 31 2021"]
[White "Yeletsky, Ivan"]
[Black "Prraneeth Vuppala"]
[WhiteFideId "24180327"]
[BlackFideId "46622373"]
[WhiteElo "2344"]
[BlackElo "1759"]
[Result "1-0"]
[Round "04"]
[TimeControl "180+1"]
[Date "2021.08.31"]
[WhiteClock "0:02:16"]
[BlackClock "0:00:15"]

1. Nf3 {[%clk 0:03:00]}  d5 {[%clk 0:02:59]} 2. d3 {[%clk 0:03:01]}  Nf6 {[%clk 0:02:55]} 3. g3 {[%clk 0:03:02]}  g6 {[%clk 0:02:35]} 4. Bg2 {[%clk 0:03:01]}  Bg7 {[%clk 0:02:35]} 5. O-O {[%clk 0:03:02]}  O-O {[%clk 0:02:35]} 6. Bf4 {[%clk 0:03:03]}  c5 {[%clk 0:02:30]} 7. c4 {[%clk 0:03:02]}  Nc6 {[%clk 0:02:06]} 8. Ne5 {[%clk 0:03:01]}  Nh5 {[%clk 0:01:46]} 9. Nxc6 {[%clk 0:02:54]}  bxc6 {[%clk 0:01:46]} 10. Bc1 {[%clk 0:02:54]}  Rb8 {[%clk 0:01:38]} 11. Qc2 {[%clk 0:02:54]}  Qb6 {[%clk 0:01:23]} 12. Nc3 {[%clk 0:02:51]}  e6 {[%clk 0:01:19]} 13. Na4 {[%clk 0:02:46]}  Qa5 {[%clk 0:01:17]} 14. Bd2 {[%clk 0:02:44]}  Qc7 {[%clk 0:01:15]} 15. Rab1 {[%clk 0:02:43]}  Qe7 {[%clk 0:01:06]} 16. b3 {[%clk 0:02:40]}  Bd7 {[%clk 0:00:56]} 17. Bc1 {[%clk 0:02:38]}  Rfc8 {[%clk 0:00:52]} 18. Ba3 {[%clk 0:02:38]}  f5 {[%clk 0:00:35]} 19. Bxc5 {[%clk 0:02:36]}  Qf7 {[%clk 0:00:35]} 20. Bxa7 {[%clk 0:02:35]}  Rb7 {[%clk 0:00:33]} 21. Bc5 {[%clk 0:02:35]}  e5 {[%clk 0:00:32]} 22. Nb6 {[%clk 0:02:24]}  Rcb8 {[%clk 0:00:32]} 23. cxd5 {[%clk 0:02:23]}  Rxb6 {[%clk 0:00:29]} 24. Bxb6 {[%clk 0:02:24]}  Rxb6 {[%clk 0:00:30]} 25. dxc6 {[%clk 0:02:25]}  Bc8 {[%clk 0:00:29]} 26. Qc5 {[%clk 0:02:25]}  Qc7 {[%clk 0:00:27]} 27. a4 {[%clk 0:02:20]}  Bf8 {[%clk 0:00:27]} 28. Qc4+ {[%clk 0:02:19]}  Kh8 {[%clk 0:00:25]} 29. b4 {[%clk 0:02:17]}  Nf6 {[%clk 0:00:21]} 30. b5 {[%clk 0:02:16]}  f4 {[%clk 0:00:15]} 31. a5 {[%clk 0:02:16]} 1-0


[Site "https://www.chess.com"]